fUSD/lending_fUSD_20241127
["ID","MTS","AMOUNT","RATE_DAILY","PERIOD"]
[343603327,1732745447639,-500.0,9.999e-05,2]
[343603329,1732745447649,-500.0,9.999e-05,2]
[343603331,1732745447658,-500.0,9.999e-05,2]
[343603333,1732745447667,-500.0,9.999e-05,2]
[343603335,1732745447677,-500.0,9.999e-05,2]
[343603337,1732745447685,-500.0,9.999e-05,2]
[343603339,1732745447695,-500.0,9.999e-05,2]
[343603341,1732745447705,-500.0,9.999e-05,2]
[343603343,1732745447714,-500.0,9.999e-05,2]
[343603345,1732745447723,-500.0,9.999e-05,2]
[343603347,1732745447732,-613.09,9.999e-05,2]
[343603348,1732745447742,-500.0,9.999e-05,2]
[343603350,1732745447751,-283.98,9.999e-05,2]
[343603352,1732745447760,-196.21982878,0.0001,2]
[343603354,1732745447770,-786940.16958758,0.0001,2]
[343603356,1732745447779,-12587.11366919,0.0001,2]
[343603358,1732745447788,-150.0,0.0001,2]
[343603360,1732745447797,-250.0,0.0001,2]
[343603362,1732745447806,-248.7,0.0001,2]
[343603364,1732745447816,-153.493,0.0001,2]
[343603366,1732745447825,-1259.0,0.0001,2]
[343603368,1732745447836,-565.0,0.0001,2]
[343603370,1732745447846,-630.0,0.0001,2]
[343603372,1732745447856,-1999.0,0.0001,2]
[343603374,1732745447866,-150.0,0.0001,2]
[343603376,1732745447876,-1931.0,0.0001,2]
[343603378,1732745447885,-562.0,0.0001,2]
[343603380,1732745447894,-3756.0,0.0001,2]
[343603382,1732745447903,-1263.0,0.0001,2]
[343603384,1732745447913,-816.0,0.0001,2]
[343603386,1732745447922,-3522.0,0.0001,2]
[343603388,1732745447931,-534.0,0.0001,2]
[343603390,1732745447940,-978.0,0.0001,2]
[343603392,1732745447949,-15676.91087164,0.0001,2]
[343603394,1732745447958,-15676.91087159,0.0001,2]
[343603396,1732745447968,-15676.91087159,0.0001,2]
[343603398,1732745447977,-15676.91087159,0.0001,2]
[343603400,1732745447986,-15676.91087159,0.0001,2]
[343603402,1732745447995,-15676.91087159,0.0001,2]
[343603404,1732745448003,-34321.0,0.0001,2]
[343603406,1732745448013,-1709166.18550037,0.0001,2]
[343603414,1732745448083,-46416.73836104,0.0001,2]
[343603416,1732745448094,-1063.337,0.0001,2]
[343603437,1732745448358,-8217.15524338,0.0001,2]
[343603440,1732745448377,-9401.88,0.0001,2]
[343603442,1732745448389,-864.8148453,0.0001,2]
[343603445,1732745448401,-346.8737007,0.0001,2]
[343603447,1732745448413,-1565.87508118,0.0001,2]
[343603487,1732745448814,-1096.0,9.822e-05,2]
[343603489,1732745448825,-821.93031573,9.889e-05,2]
[343603492,1732745448839,-2988.26552043,9.889e-05,2]
[343603500,1732745448921,-9461.0168842,9.889e-05,2]
[343603503,1732745448933,-1929.1342834,9.889e-05,2]
[343603506,1732745448956,-360.3376426,9.889e-05,2]
[343603508,1732745448975,-472.16,9.889e-05,2]
[343603512,1732745448997,-367.56723535,9.889e-05,2]
[343603528,1732745449150,-60310.69655917,9.889e-05,2]
[343603530,1732745449161,-4615.076843,9.889e-05,2]
[343603532,1732745449177,-10342.20390953,9.889e-05,2]
[343603534,1732745449189,-59497.7829552,9.889e-05,2]
[343603539,1732745449227,-475.63087672,9.889e-05,2]
[343603542,1732745449239,-853.50112554,9.889e-05,2]
[343603544,1732745449251,-1460.1265687,9.889e-05,2]
[343603546,1732745449263,-306.78409997,9.889e-05,2]
[343603548,1732745449275,-720.45500001,9.889e-05,2]
[343603549,1732745449287,-9719.7001119,9.889e-05,2]
[343603550,1732745449299,-743.64066667,9.889e-05,2]
[343603565,1732745449479,-3792.23978908,9.889e-05,2]
[343603567,1732745449491,-6934.9860944,9.889e-05,2]
[343603569,1732745449503,-13399.27399811,9.889e-05,2]
[343603572,1732745449515,-15020.08635774,9.889e-05,2]
[343603574,1732745449532,-369.09681148,9.889e-05,2]
[343603577,1732745449553,-40038.30635107,9.889e-05,2]
[343603579,1732745449563,-10101.14066,9.947e-05,2]
[343603582,1732745449573,-500.0,9.973e-05,2]
[343603583,1732745449585,-547.81,9.994e-05,2]
[343603586,1732745449597,-15676.91087159,0.0001,2]
[343603588,1732745449608,-15676.91087159,0.0001,2]
[343603590,1732745449619,-106004.92124575,0.0001,2]
[343603592,1732745449632,-8734.27043697,0.0001,2]
[343603595,1732745449650,-829.41965825,0.0001,2]
[343603604,1732745449734,-377.77740237,0.0001,2]
[343603606,1732745449746,-979.69976,0.0001,2]
[343603615,1732745449863,-1884.94306,0.0001,2]
[343603617,1732745449875,-928.24886114,0.0001,2]
[343603618,1732745449887,-471.05666667,0.0001,2]
[343603620,1732745449899,-4305.27130446,0.0001,2]
[343603622,1732745449910,-10478.22353189,0.0001,2]
[343603623,1732745449922,-139855.91999491,0.0001,2]
[343603625,1732745449934,-3857.373036,0.0001,2]
[343607495,1732746088800,10000.0,0.00026,90]
[343607496,1732746117547,150.0,0.00025,90]
[343607497,1732746126542,903.54527054,0.00026,90]
[343607498,1732746199616,8806.2,0.00026,120]
[343607499,1732746339646,9096.5,0.00026,120]
[343609144,1732746631492,-1105.1909775,8.219e-05,2]
[343609145,1732746631501,-2194.98,8.219e-05,2]
[343609146,1732746631510,-170.33,8.219e-05,2]
[343609147,1732746631519,-200.0,8.338e-05,2]
[343609148,1732746631529,-4606.55,8.347e-05,2]
[343609150,1732746631538,-1500.0,8.358e-05,2]
[343609152,1732746631548,-1402.59,8.363e-05,2]
[343609154,1732746631557,-1704.33,8.369e-05,2]
[343609156,1732746631567,-531.58,8.395e-05,2]
[343609158,1732746631577,-250.0,8.397e-05,2]
[343609160,1732746631587,-5554.72,8.401e-05,2]
[343609162,1732746631597,-250.0,8.45e-05,2]
[343609164,1732746631606,-1000.0,8.485e-05,2]
[343609166,1732746631615,-283.94,8.493e-05,2]
[343609168,1732746631625,-3347.69,8.496e-05,2]
[343609170,1732746631634,-2947.93,8.524e-05,2]
[343609172,1732746631643,-250.0,8.538e-05,2]
[343609174,1732746631652,-300.0,8.573e-05,2]
[343609176,1732746631661,-188.5,8.63e-05,2]
[343609178,1732746631670,-150.0,8.658e-05,2]
[343609180,1732746631681,-23214.6579885,8.659e-05,2]
[343609187,1732746631747,-685.3420115,8.659e-05,2]
[343609189,1732746631756,-2027.31618651,8.664e-05,2]
[343609191,1732746631766,-283.94,8.807e-05,2]
[343609193,1732746631776,-167.52,8.859e-05,2]
[343609195,1732746631786,-500.0,8.89e-05,2]
[343609197,1732746631796,-169.81,8.905e-05,2]
[343609199,1732746631806,-20210.0,8.942e-05,2]
[343609201,1732746631816,-150.0,9e-05,2]
[343609203,1732746631826,-14365.58446914,9.048e-05,2]
[343609207,1732746631852,-1321.39553086,9.048e-05,2]
[343609209,1732746631862,-283.94,9.122e-05,2]
[343609211,1732746631872,-166.54,9.38e-05,2]
[343609213,1732746631881,-283.94,9.436e-05,2]
[343609215,1732746631890,-531.58,9.444e-05,2]
[343609217,1732746631899,-255.0,9.523e-05,2]
[343609219,1732746631908,-479.15466254,9.545e-05,2]
[343609221,1732746631920,-323.52744341,9.545e-05,2]
[343609222,1732746631932,-197.31789405,9.545e-05,2]
[343609223,1732746631942,-400.0,9.589e-05,2]
[343609224,1732746631952,-788.01981045,9.67e-05,2]
[343609225,1732746631967,-199.56018955,9.67e-05,2]
[343609226,1732746631977,-299.99,9.67e-05,2]
[343609227,1732746631987,-486.58581045,9.67e-05,2]
[343609230,1732746632007,-202.91418955,9.67e-05,2]
[343609232,1732746632016,-407.64581045,9.67e-05,2]
[343609234,1732746632028,-1108.50418955,9.67e-05,2]
[343609236,1732746632037,-3093.72782895,9.67e-05,2]
[343609261,1732746632276,-383.34217105,9.67e-05,2]
[343609263,1732746632286,-1102.17,9.67e-05,2]
[343609265,1732746632295,-150.99,9.67e-05,2]
[343609267,1732746632304,-150.99,9.67e-05,2]
[343609268,1732746632313,-1712.22,9.67e-05,2]
[343609269,1732746632323,-499.65875976,9.67e-05,2]
[343609574,1732746637434,-8616.81124024,9.67e-05,2]
[343609576,1732746637444,-306.24,9.67e-05,2]
[343609577,1732746637454,-1093.07755704,9.67e-05,2]
[343609578,1732746637577,-412.25244296,9.67e-05,2]
[343609579,1732746637589,-2935.54,9.67e-05,2]
[343609580,1732746637598,-201.0,9.733e-05,2]
[343609581,1732746637608,-203.0,9.733e-05,2]
[343609582,1732746637617,-150.0,9.74e-05,2]
[343609583,1732746637626,-283.94,9.75e-05,2]
[343609584,1732746637636,-150.0,9.754e-05,2]
[343609585,1732746637645,-150.0,9.759e-05,2]
[343609586,1732746637655,-150.0,9.762e-05,2]
[343609587,1732746637664,-166.54,9.767e-05,2]
[343609588,1732746637674,-2500.0,9.787e-05,2]
[343609589,1732746637683,-9699.3134,9.788e-05,2]
[343609590,1732746637692,-2500.0,9.788e-05,2]
[343609591,1732746637702,-54635.1306,9.789e-05,2]
[343609592,1732746637712,-150.0,9.795e-05,2]
[343609593,1732746637721,-248.003391,9.8e-05,2]
[343609594,1732746637731,-150.0,9.805e-05,2]
[343609595,1732746637743,-150.0,9.838e-05,2]
[343609596,1732746637752,-150.0,9.843e-05,2]
[343609597,1732746637762,-150.0,9.853e-05,2]
[343609598,1732746637771,-150.0,9.854e-05,2]
[343609599,1732746637781,-150.0,9.859e-05,2]
[343609600,1732746637791,-150.0,9.862e-05,2]
[343609601,1732746637800,-500.0,9.863e-05,2]
[343609602,1732746637809,-500.0,9.863e-05,2]
[343609603,1732746637819,-500.0,9.863e-05,2]
[343609604,1732746637828,-500.0,9.863e-05,2]
[343609605,1732746637838,-188.26628345,9.863e-05,2]
[343609606,1732746637847,-500.0,9.863e-05,2]
[343609607,1732746637857,-500.0,9.863e-05,2]
[343609608,1732746637867,-150.0,9.88e-05,2]
[343609609,1732746637876,-500.0,9.887e-05,2]
[343609610,1732746637885,-500.0,9.887e-05,2]
[343609611,1732746637895,-500.0,9.887e-05,2]
[343609612,1732746637904,-500.0,9.887e-05,2]
[343609613,1732746637914,-500.0,9.887e-05,2]
[343609614,1732746637923,-500.0,9.887e-05,2]
[343609615,1732746637933,-500.0,9.887e-05,2]
[343609616,1732746637942,-500.0,9.887e-05,2]
[343609617,1732746637952,-500.0,9.887e-05,2]
[343609618,1732746637964,-500.0,9.887e-05,2]
[343609619,1732746637974,-585.86,9.887e-05,2]
[343609620,1732746637983,-500.0,9.887e-05,2]
[343609621,1732746637993,-500.0,9.887e-05,2]
[343609622,1732746638004,-500.0,9.887e-05,2]
[343609623,1732746638013,-500.0,9.887e-05,2]
[343609624,1732746638023,-500.0,9.887e-05,2]
[343609625,1732746638032,-500.0,9.887e-05,2]
[343609626,1732746638043,-500.0,9.887e-05,2]
[343609627,1732746638053,-500.0,9.887e-05,2]
[343609628,1732746638062,-500.0,9.887e-05,2]
[343609629,1732746638072,-500.0,9.887e-05,2]
[343609630,1732746638081,-500.0,9.887e-05,2]
[343609631,1732746638092,-500.0,9.887e-05,2]
[343609632,1732746638102,-500.0,9.887e-05,2]
[343609633,1732746638110,-580.82,9.887e-05,2]
[343609634,1732746638119,-500.0,9.887e-05,2]
[343609635,1732746638130,-500.0,9.887e-05,2]
[343609636,1732746638139,-500.0,9.887e-05,2]
[343609637,1732746638148,-500.0,9.887e-05,2]
[343609638,1732746638158,-500.0,9.887e-05,2]
[343609639,1732746638167,-500.0,9.887e-05,2]
[343609641,1732746638176,-500.0,9.887e-05,2]
[343609643,1732746638185,-500.0,9.887e-05,2]
[343609645,1732746638195,-556.46,9.887e-05,2]
[343609646,1732746638204,-500.0,9.887e-05,2]
[343609647,1732746638213,-500.0,9.887e-05,2]
[343609648,1732746638223,-515.65,9.887e-05,2]
[343609649,1732746638232,-500.0,9.887e-05,2]
[343609650,1732746638243,-729.16,9.887e-05,2]
[343609651,1732746638251,-500.0,9.887e-05,2]
[343609652,1732746638261,-500.0,9.887e-05,2]
[343609653,1732746638270,-500.0,9.887e-05,2]
[343609654,1732746638279,-406.26,9.887e-05,2]
[343609655,1732746638287,-500.0,9.887e-05,2]
[343609656,1732746638297,-1650.88,9.887e-05,2]
[343609657,1732746638306,-500.0,9.887e-05,2]
[343609658,1732746638315,-500.0,9.887e-05,2]
[343609659,1732746638324,-500.0,9.887e-05,2]
[343609660,1732746638332,-594.66,9.887e-05,2]
[343609661,1732746638341,-500.0,9.887e-05,2]
[343609662,1732746638350,-500.0,9.887e-05,2]
[343609663,1732746638359,-500.0,9.887e-05,2]
[343609664,1732746638369,-3764.47,9.887e-05,2]
[343609665,1732746638378,-500.0,9.887e-05,2]
[343609666,1732746638388,-500.0,9.887e-05,2]
[343609667,1732746638397,-500.0,9.887e-05,2]
[343609668,1732746638406,-500.0,9.887e-05,2]
[343609669,1732746638415,-500.0,9.887e-05,2]
[343609670,1732746638424,-500.0,9.887e-05,2]
[343609671,1732746638433,-500.0,9.887e-05,2]
[343609672,1732746638442,-696.5,9.887e-05,2]
[343609673,1732746638452,-500.0,9.888e-05,2]
[343609674,1732746638461,-500.0,9.888e-05,2]
[343609675,1732746638471,-500.0,9.888e-05,2]
[343609676,1732746638480,-627.75,9.888e-05,2]
[343609677,1732746638491,-627.75,9.888e-05,2]
[343609678,1732746638500,-30.82216568,9.888e-05,2]
[343609679,1732746638514,-596.92783432,9.888e-05,2]
[343609680,1732746638523,-500.0,9.888e-05,2]
[343609681,1732746638533,-500.0,9.888e-05,2]
[343609683,1732746638542,-500.0,9.888e-05,2]
[343609685,1732746638551,-776.5,9.888e-05,2]
[343609686,1732746638560,-776.5,9.888e-05,2]
[343609688,1732746638570,-776.5,9.888e-05,2]
[343609689,1732746638579,-500.0,9.888e-05,2]
[343609690,1732746638588,-500.0,9.888e-05,2]
[343609691,1732746638598,-514.59996961,9.888e-05,2]
[343609692,1732746638607,-500.0,9.888e-05,2]
[343609693,1732746638616,-500.0,9.888e-05,2]
[343609694,1732746638625,-500.0,9.888e-05,2]
[343609695,1732746638634,-68.1139565,9.888e-05,2]
[343609696,1732746638656,-481.22444143,9.888e-05,2]
[343609697,1732746638665,-500.0,9.888e-05,2]
[343609698,1732746638674,-500.0,9.888e-05,2]
[343609699,1732746638683,-500.0,9.888e-05,2]
[343609700,1732746638692,-500.0,9.888e-05,2]
[343609701,1732746638701,-500.0,9.888e-05,2]
[343609702,1732746638710,-501.504561,9.888e-05,2]
[343609703,1732746638719,-186.67099757,9.888e-05,2]
[343609704,1732746638730,-313.32900243,9.888e-05,2]
[343609705,1732746638740,-500.0,9.888e-05,2]
[343609706,1732746638749,-500.0,9.888e-05,2]
[343609707,1732746638758,-290.40871307,9.888e-05,2]
[343609708,1732746638782,-209.59128693,9.888e-05,2]
[343609709,1732746638792,-500.0,9.888e-05,2]
[343609710,1732746638801,-500.0,9.888e-05,2]
[343609711,1732746638811,-566.14,9.888e-05,2]
[343609712,1732746638820,-229.87246547,9.888e-05,2]
[343609713,1732746638831,-270.12753453,9.888e-05,2]
[343609714,1732746638841,-500.0,9.888e-05,2]
[343609715,1732746638850,-230.82200012,9.888e-05,2]
[343609716,1732746638861,-269.17799988,9.888e-05,2]
[343609717,1732746638871,-307.12965443,9.888e-05,2]
[343609718,1732746638882,-192.87034557,9.888e-05,2]
[343609719,1732746638890,-500.0,9.888e-05,2]
[343609720,1732746638899,-500.0,9.888e-05,2]
[343609721,1732746638908,-500.0,9.888e-05,2]
[343609722,1732746638917,-500.0,9.888e-05,2]
[343609723,1732746638927,-630.25,9.888e-05,2]
[343609724,1732746638936,-500.0,9.888e-05,2]
[343609725,1732746638945,-500.0,9.888e-05,2]
[343609726,1732746638955,-500.0,9.888e-05,2]
[343609727,1732746638967,-642.44565142,9.888e-05,2]
[343609728,1732746638976,-500.0,9.888e-05,2]
[343609729,1732746638986,-581.66,9.888e-05,2]
[343609730,1732746638996,-460.14047476,9.888e-05,2]
[343609731,1732746639009,-39.85952524,9.888e-05,2]
[343609732,1732746639019,-500.0,9.888e-05,2]
[343609733,1732746639028,-500.0,9.888e-05,2]
[343609734,1732746639039,-500.0,9.888e-05,2]
[343609735,1732746639049,-500.0,9.888e-05,2]
[343609736,1732746639058,-500.0,9.888e-05,2]
[343609737,1732746639067,-500.0,9.888e-05,2]
[343609738,1732746639076,-574.08,9.888e-05,2]
[343609739,1732746639085,-41.06047476,9.888e-05,2]
[343609740,1732746639100,-576.80581591,9.888e-05,2]
[343609741,1732746639110,-560.78,9.888e-05,2]
[343609742,1732746639118,-597.82,9.888e-05,2]
[343609743,1732746639127,-500.0,9.888e-05,2]
[343609744,1732746639137,-500.0,9.888e-05,2]
[343609745,1732746639146,-500.0,9.888e-05,2]
[343609746,1732746639155,-500.0,9.888e-05,2]
[343609747,1732746639164,-500.0,9.888e-05,2]
[343609748,1732746639173,-500.0,9.888e-05,2]
[343609749,1732746639182,-501.21905934,9.888e-05,2]
[343609750,1732746639191,-500.0,9.888e-05,2]
[343609751,1732746639200,-500.0,9.888e-05,2]
[343609752,1732746639210,-500.0,9.888e-05,2]
[343609753,1732746639219,-500.0,9.888e-05,2]
[343609754,1732746639228,-500.0,9.888e-05,2]
[343609755,1732746639238,-500.0,9.888e-05,2]
[343609756,1732746639247,-500.0,9.888e-05,2]
[343609757,1732746639257,-518.23,9.888e-05,2]
[343609758,1732746639266,-360.35127965,9.888e-05,2]
[343609759,1732746639275,-500.0,9.888e-05,2]
[343609760,1732746639284,-500.0,9.888e-05,2]
[343609761,1732746639293,-500.0,9.888e-05,2]
[343609763,1732746639302,-500.0,9.888e-05,2]
[343609764,1732746639311,-500.0,9.888e-05,2]
[343609766,1732746639320,-500.0,9.888e-05,2]
[343609767,1732746639329,-123.8303066,9.888e-05,2]
[343609769,1732746639495,-310.07169474,9.887e-05,2]
[343609770,1732746639504,-500.0,9.887e-05,2]
[343609771,1732746639514,-417.1196934,9.888e-05,2]
[343609772,1732746639523,-507.46,9.888e-05,2]
[343609773,1732746639534,-500.0,9.888e-05,2]
[343609774,1732746639544,-500.0,9.888e-05,2]
[343609775,1732746639555,-500.0,9.888e-05,2]
[343609776,1732746639564,-500.0,9.888e-05,2]
[343609777,1732746639574,-500.0,9.888e-05,2]
[343609778,1732746639583,-500.0,9.888e-05,2]
[343609779,1732746639593,-500.0,9.888e-05,2]
[343609780,1732746639603,-500.0,9.888e-05,2]
[343609781,1732746639613,-500.0,9.888e-05,2]
[343609782,1732746639623,-235.14,9.888e-05,2]
[343609783,1732746639633,-500.0,9.888e-05,2]
[343609784,1732746639642,-500.0,9.888e-05,2]
[343609785,1732746639652,-500.0,9.888e-05,2]
[343609786,1732746639661,-281.89,9.888e-05,2]
[343609787,1732746639671,-500.0,9.888e-05,2]
[343609788,1732746639680,-500.0,9.888e-05,2]
[343609789,1732746639689,-500.0,9.888e-05,2]
[343609790,1732746639698,-500.0,9.888e-05,2]
[343609791,1732746639708,-500.0,9.888e-05,2]
[343609792,1732746639718,-298.65,9.888e-05,2]
[343609793,1732746639728,-500.0,9.888e-05,2]
[343609794,1732746639737,-500.0,9.888e-05,2]
[343609795,1732746639748,-500.0,9.888e-05,2]
[343609796,1732746639757,-295.34,9.888e-05,2]
[343609797,1732746639766,-500.0,9.888e-05,2]
[343609798,1732746639776,-462.02,9.888e-05,2]
[343609799,1732746639785,-500.0,9.888e-05,2]
[343609800,1732746639794,-500.0,9.888e-05,2]
[343609801,1732746639804,-500.0,9.888e-05,2]
[343609802,1732746639813,-500.0,9.888e-05,2]
[343609803,1732746639822,-230.35,9.888e-05,2]
[343609804,1732746639832,-500.0,9.888e-05,2]
[343609805,1732746639841,-500.0,9.888e-05,2]
[343609806,1732746639850,-500.0,9.888e-05,2]
[343609807,1732746639860,-500.0,9.888e-05,2]
[343609808,1732746639869,-500.0,9.888e-05,2]
[343609809,1732746639879,-500.0,9.888e-05,2]
[343609810,1732746639887,-513.30704457,9.888e-05,2]
[343609811,1732746639896,-550.04997864,9.888e-05,2]
[343609812,1732746639906,-545.46,9.888e-05,2]
[343609813,1732746639915,-500.0,9.888e-05,2]
[343609814,1732746639924,-500.0,9.888e-05,2]
[343609815,1732746639933,-204.87,9.888e-05,2]
[343609816,1732746639943,-500.0,9.888e-05,2]
[343609817,1732746639952,-629.6,9.888e-05,2]
[343609818,1732746639964,-500.0,9.888e-05,2]
[343609819,1732746639974,-500.0,9.888e-05,2]
[343609820,1732746639983,-322.74654336,9.888e-05,2]
[343609821,1732746639994,-500.0,9.888e-05,2]
[343609822,1732746640004,-279.17,9.888e-05,2]
[343609823,1732746640013,-500.0,9.888e-05,2]
[343609824,1732746640022,-208.61,9.888e-05,2]
[343609825,1732746640032,-181.07,9.888e-05,2]
[343609826,1732746640043,-500.0,9.888e-05,2]
[343609827,1732746640053,-500.0,9.888e-05,2]
[343609828,1732746640062,-500.0,9.888e-05,2]
[343609829,1732746640072,-500.0,9.888e-05,2]
[343609830,1732746640082,-500.0,9.888e-05,2]
[343609831,1732746640091,-500.0,9.888e-05,2]
[343609832,1732746640100,-500.0,9.888e-05,2]
[343609833,1732746640109,-500.0,9.888e-05,2]
[343609834,1732746640118,-422.00877576,9.888e-05,2]
[343609835,1732746640128,-236.15821799,9.888e-05,2]
[343609836,1732746640138,-500.0,9.888e-05,2]
[343609837,1732746640147,-533.19,9.888e-05,2]
[343609838,1732746640156,-500.0,9.888e-05,2]
[343609839,1732746640165,-151.72,9.888e-05,2]
[343609840,1732746640175,-530.02,9.888e-05,2]
[343609841,1732746640184,-527.73,9.888e-05,2]
[343609842,1732746640193,-500.0,9.888e-05,2]
[343609843,1732746640202,-500.0,9.888e-05,2]
[343609844,1732746640212,-500.0,9.888e-05,2]
[343609845,1732746640221,-500.0,9.888e-05,2]
[343609846,1732746640231,-500.0,9.888e-05,2]
[343609847,1732746640241,-500.0,9.888e-05,2]
[343609848,1732746640250,-218.71,9.888e-05,2]
[343609849,1732746640259,-500.0,9.888e-05,2]
[343609850,1732746640268,-500.0,9.888e-05,2]
[343609851,1732746640277,-500.0,9.888e-05,2]
[343609852,1732746640286,-500.0,9.888e-05,2]
[343609853,1732746640296,-500.0,9.888e-05,2]
[343609854,1732746640305,-500.0,9.888e-05,2]
[343609855,1732746640315,-521.11,9.888e-05,2]
[343609856,1732746640325,-500.0,9.888e-05,2]
[343609857,1732746640334,-500.0,9.888e-05,2]
[343609858,1732746640344,-500.0,9.888e-05,2]
[343609859,1732746640353,-500.0,9.888e-05,2]
[343609860,1732746640363,-225.8,9.888e-05,2]
[343609861,1732746640372,-500.0,9.888e-05,2]
[343609862,1732746640382,-500.0,9.888e-05,2]
[343609863,1732746640391,-156.33,9.888e-05,2]
[343609864,1732746640401,-500.0,9.888e-05,2]
[343609865,1732746640411,-500.0,9.888e-05,2]
[343609866,1732746640421,-500.0,9.888e-05,2]
[343609867,1732746640430,-500.0,9.888e-05,2]
[343609868,1732746640440,-500.0,9.888e-05,2]
[343609869,1732746640450,-500.0,9.888e-05,2]
[343609870,1732746640459,-500.0,9.888e-05,2]
[343609871,1732746640468,-264.77,9.888e-05,2]
[343609872,1732746640478,-538.58,9.888e-05,2]
[343609873,1732746640488,-500.0,9.888e-05,2]
[343609874,1732746640499,-200.54,9.888e-05,2]
[343609875,1732746640508,-500.0,9.888e-05,2]
[343609876,1732746640518,-504.22,9.888e-05,2]
[343609877,1732746640724,-500.0,9.888e-05,2]
[343609878,1732746640734,-226.0443274,9.888e-05,2]
[343609879,1732746640747,-500.0,9.888e-05,2]
[343609880,1732746640757,-188.38,9.888e-05,2]
[343609881,1732746640766,-500.0,9.888e-05,2]
[343609882,1732746640776,-500.0,9.888e-05,2]
[343609883,1732746640786,-500.0,9.888e-05,2]
[343609884,1732746640796,-500.0,9.888e-05,2]
[343609885,1732746640805,-500.0,9.888e-05,2]
[343609886,1732746640815,-500.0,9.888e-05,2]
[343609887,1732746640825,-500.0,9.888e-05,2]
[343609888,1732746640835,-500.0,9.888e-05,2]
[343609889,1732746640845,-500.0,9.888e-05,2]
[343609890,1732746640854,-500.0,9.888e-05,2]
[343609891,1732746640864,-500.0,9.888e-05,2]
[343609892,1732746640874,-500.0,9.888e-05,2]
[343609893,1732746640883,-455.33,9.888e-05,2]
[343609894,1732746640894,-500.0,9.888e-05,2]
[343609895,1732746640904,-500.0,9.888e-05,2]
[343609896,1732746640913,-504.63,9.888e-05,2]
[343609897,1732746640923,-188.82003386,9.888e-05,2]
[343609898,1732746640932,-545.02,9.888e-05,2]
[343609899,1732746640942,-500.0,9.888e-05,2]
[343609900,1732746640951,-500.0,9.888e-05,2]
[343609901,1732746640963,-500.0,9.888e-05,2]
[343609902,1732746640975,-500.0,9.888e-05,2]
[343609903,1732746640985,-500.0,9.888e-05,2]
[343609904,1732746640997,-500.0,9.888e-05,2]
[343609905,1732746641008,-500.0,9.888e-05,2]
[343609906,1732746641018,-500.0,9.888e-05,2]
[343609907,1732746641027,-500.0,9.888e-05,2]
[343609908,1732746641037,-444.88,9.888e-05,2]
[343609909,1732746641047,-500.0,9.888e-05,2]
[343609910,1732746641057,-500.0,9.888e-05,2]
[343609911,1732746641067,-500.0,9.888e-05,2]
[343609912,1732746641076,-625.1,9.888e-05,2]
[343609913,1732746641085,-500.0,9.888e-05,2]
[343609914,1732746641095,-500.0,9.888e-05,2]
[343609915,1732746641105,-500.0,9.888e-05,2]
[343609916,1732746641114,-500.0,9.888e-05,2]
[343609917,1732746641123,-356.93323694,9.888e-05,2]
[343609918,1732746641132,-500.0,9.888e-05,2]
[343609919,1732746641143,-237.99,9.888e-05,2]
[343609920,1732746641153,-445.89,9.888e-05,2]
[343609921,1732746641162,-500.0,9.888e-05,2]
[343609922,1732746641172,-500.0,9.888e-05,2]
[343609923,1732746641181,-500.0,9.888e-05,2]
[343609924,1732746641190,-500.0,9.888e-05,2]
[343609925,1732746641199,-500.0,9.888e-05,2]
[343609926,1732746641208,-543.58,9.888e-05,2]
[343609927,1732746641218,-500.0,9.888e-05,2]
[343609928,1732746641227,-500.0,9.888e-05,2]
[343609929,1732746641236,-500.0,9.888e-05,2]
[343609930,1732746641247,-500.0,9.888e-05,2]
[343609931,1732746641257,-500.0,9.888e-05,2]
[343609932,1732746641267,-508.8,9.888e-05,2]
[343609933,1732746641276,-423.31,9.888e-05,2]
[343609934,1732746641285,-500.0,9.888e-05,2]